{"text_format":"1","workbook":"xlsx","n_sheets":8,"sheets":["Il Quaderno dei Conti","Istruzioni per l'uso","Entrate","Uscite","Risparmi","Sheet1","Prospetti di sintesi","Nota giornaliera"],"not_rendered":{"charts":7,"images":5,"macros":1,"external_links":1,"defined_names":5,"comments":0,"pivot_tables":0},"unopened":[],"bounds":{"document_bytes":16777216,"sheet_cells":100000,"rows_first":2000,"rows_last":500,"rows_between":2000,"halvings":0,"cell_chars":16384,"cell_head_chars":4096},"cells_cut":0,"cells_raw":0,"read":"whole","date_system":"1900"}

{"sheet":"Il Quaderno dei Conti","index":0,"n_rows":0,"n_cols":0,"rows_kept":0,"cut":false,"hidden":false,"merged":[]}

{"sheet":"Istruzioni per l'uso","index":1,"n_rows":0,"n_cols":0,"rows_kept":0,"cut":false,"hidden":false,"merged":[]}

{"sheet":"Entrate","index":2,"n_rows":59,"n_cols":25,"rows_kept":59,"cut":false,"hidden":false,"merged":[[10,7,10,11],[50,7,50,8],[50,9,50,10],[18,19,18,22],[20,19,20,22]]}
[]
[]
[]
[]
[]
[]
[]
[null,null,null,null,null,null,null,null,null,null,null,null,null,null,null,null,null,null,null,"Obiettivi di entrata mensili",null,null,null,null,0]
[]
[null,null,null,null,null,null,null,null,null,null,null,null,null,null,null,null,null,null,null,"Obiettivi di uscita mensili",null,null,null,null,0]
[null,null,null,null,null,null,null,"Qual è l'orizzonte temporale della tua pianificazione?",null,null,null,null,null,null,"Mensile"]
[null,null,null,null,null,null,null,null,null,null,null,null,null,null,null,null,null,null,null,"Obiettivi di risparmio mensili",null,null,null,null,0]
[null,null,"Categorie di Entrata",null,null,null,null,"Periodicità",null,"Tipologia",null,"Importo",null,"Totale"]
[]
[]
[null,null,"Reddito da lavoro dipendente",null,null,null,null,"Mensile",null,"Ordinaria",null,0,null,{"$f":"calcolaBasePeriodo(H16,L16,$O$11)","v":0}]
[]
[null,null,"Straordinari",null,null,null,null,"Mensile",null,"Ordinaria",null,0,null,{"$f":"calcolaBasePeriodo(H18,L18,$O$11)","v":0}]
[null,null,null,null,null,null,null,null,null,null,null,null,null,null,null,null,null,null,null,"Tipologia di entrate",null,null,null,null,"Tutte"]
[null,null,"Bonus",null,null,null,null,"Mensile",null,"Ordinaria",null,0,null,{"$f":"calcolaBasePeriodo(H20,L20,$O$11)","v":0}]
[null,null,null,null,null,null,null,null,null,null,null,null,null,null,null,null,null,null,null,"Tipologia di uscite",null,null,null,null,"Tutte"]
[null,null,"Reddito da lavoro autonomo",null,null,null,null,"Mensile",null,"Ordinaria",null,0,null,{"$f":"calcolaBasePeriodo(H22,L22,$O$11)","v":0}]
[null,null,null,null,null,null,null,null,null,null,null,null,null,null,null,null,null,null,null,"Entrate mensili ",null,null,null,null,{"$f":"sommaBaseTipologia(J16:J47,N16:N47,$Y$19)","v":0}]
[null,null,"Reddito di impresa",null,null,null,null,"Mensile",null,"Ordinaria",null,0,null,{"$f":"calcolaBasePeriodo(H24,L24,$O$11)","v":0}]
[null,null,null,null,null,null,null,null,null,null,null,null,null,null,null,null,null,null,null,null,"Reddito da lavoro dipendente",null,null,null,{"$f":"sommaBaseTipologia(J16,N16,$Y$19)","v":0}]
[null,null,"Reddito del partner",null,null,null,null,"Mensile",null,"Ordinaria",null,0,null,{"$f":"calcolaBasePeriodo(H26,L26,$O$11)","v":0}]
[null,null,null,null,null,null,null,null,null,null,null,null,null,null,null,null,null,null,null,null,"Straordinari",null,null,null,{"$f":"sommaBaseTipologia(J18,N18,$Y$19)","v":0}]
[null,null,"Reddito di cittadinanza",null,null,null,null,"Mensile",null,"Ordinaria",null,0,null,{"$f":"calcolaBasePeriodo(H28,L28,$O$11)","v":0}]
[null,null,null,null,null,null,null,null,null,null,null,null,null,null,null,null,null,null,null,null,"Bonus",null,null,null,{"$f":"sommaBaseTipologia(J20,N20,$Y$19)","v":0}]
[null,null,"Reddito di emergenza",null,null,null,null,"Mensile",null,"Ordinaria",null,0,null,{"$f":"calcolaBasePeriodo(H30,L30,$O$11)","v":0}]
[null,null,null,null,null,null,null,null,null,null,null,null,null,null,null,null,null,null,null,null,"Reddito da lavoro autonomo",null,null,null,{"$f":"sommaBaseTipologia(J22,N22,$Y$19)","v":0}]
[null,null,"Pensione",null,null,null,null,"Mensile",null,"Ordinaria",null,0,null,{"$f":"calcolaBasePeriodo(H32,L32,$O$11)","v":0}]
[null,null,null,null,null,null,null,null,null,null,null,null,null,null,null,null,null,null,null,null,"Reddito di impresa",null,null,null,{"$f":"sommaBaseTipologia(J24,N24,$Y$19)","v":0}]
[null,null,"Assegni familiari",null,null,null,null,"Mensile",null,"Ordinaria",null,0,null,{"$f":"calcolaBasePeriodo(H34,L34,$O$11)","v":0}]
[null,null,null,null,null,null,null,null,null,null,null,null,null,null,null,null,null,null,null,null,"Reddito del partner",null,null,null,{"$f":"sommaBaseTipologia(J26,N26,$Y$19)","v":0}]
[null,null,"Assegni sociali",null,null,null,null,"Mensile",null,"Ordinaria",null,0,null,{"$f":"calcolaBasePeriodo(H36,L36,$O$11)","v":0}]
[null,null,null,null,null,null,null,null,null,null,null,null,null,null,null,null,null,null,null,null,"Reddito di cittadinanza",null,null,null,{"$f":"sommaBaseTipologia(J28,N28,$Y$19)","v":0}]
[null,null,"Rimborsi tasse",null,null,null,null,"Mensile",null,"Ordinaria",null,0,null,{"$f":"calcolaBasePeriodo(H38,L38,$O$11)","v":0}]
[null,null,null,null,null,null,null,null,null,null,null,null,null,null,null,null,null,null,null,null,"Reddito di emergenza",null,null,null,{"$f":"sommaBaseTipologia(J30,N30,$Y$19)","v":0}]
[null,null,"Sovvenzioni",null,null,null,null,"Mensile",null,"Ordinaria",null,0,null,{"$f":"calcolaBasePeriodo(H40,L40,$O$11)","v":0}]
[null,null,null,null,null,null,null,null,null,null,null,null,null,null,null,null,null,null,null,null,"Pensione",null,null,null,{"$f":"sommaBaseTipologia(J32,N32,$Y$19)","v":0}]
[null,null,"Rendite da immobili in locazione",null,null,null,null,"Mensile",null,"Ordinaria",null,0,null,{"$f":"calcolaBasePeriodo(H42,L42,$O$11)","v":0}]
[null,null,null,null,null,null,null,null,null,null,null,null,null,null,null,null,null,null,null,null,"Assegni familiari",null,null,null,{"$f":"sommaBaseTipologia(J34,N34,$Y$19)","v":0}]
[null,null,"Rendite da terreni",null,null,null,null,"Mensile",null,"Ordinaria",null,0,null,{"$f":"calcolaBasePeriodo(H44,L44,$O$11)","v":0}]
[null,null,null,null,null,null,null,null,null,null,null,null,null,null,null,null,null,null,null,null,"Assegni sociali",null,null,null,{"$f":"sommaBaseTipologia(J36,N36,$Y$19)","v":0}]
[null,null,"Rendite finanziarie",null,null,null,null,"Mensile",null,"Ordinaria",null,0,null,{"$f":"calcolaBasePeriodo(H46,L46,$O$11)","v":0}]
[null,null,null,null,null,null,null,null,null,null,null,null,null,null,null,null,null,null,null,null,"Rimborsi tasse",null,null,null,{"$f":"sommaBaseTipologia(J38,N38,$Y$19)","v":0}]
[]
[null,null,null,null,null,null,null,null,null,null,null,null,null,null,null,null,null,null,null,null,"Sovvenzioni",null,null,null,{"$f":"sommaBaseTipologia(J40,N40,$Y$19)","v":0}]
[]
[null,null,null,null,null,null,null,null,null,"Totale mensile",null,{"$f":"SUM(N16:N47)","v":0},null,null,null,null,null,null,null,null,"Rendite da immobili in locazione",null,null,null,{"$f":"sommaBaseTipologia(J42,N42,$Y$19)","v":0}]
[]
[null,null,null,null,null,null,null,null,null,null,null,null,null,null,null,null,null,null,null,null,"Rendite da terreni",null,null,null,{"$f":"sommaBaseTipologia(J44,N44,$Y$19)","v":0}]
[]
[null,null,null,null,null,null,null,null,null,null,null,null,null,null,null,null,null,null,null,null,"Rendite finanziarie",null,null,null,{"$f":"sommaBaseTipologia(J46,N46,$Y$19)","v":0}]
[]
[null,null,null,null,null,null,null,null,null,null,null,null,null,null,null,null,null,null,null,"Uscite mensili ",null,null,null,null,{"$f":"Uscite!Y25","v":0}]
[]
[null,null,null,null,null,null,null,null,null,null,null,null,null,null,null,null,null,null,null,"Risparmi mensili (entrate - uscite)",null,null,null,null,{"$f":"Risparmi!Y27","v":0}]

{"sheet":"Uscite","index":3,"n_rows":204,"n_cols":25,"rows_kept":204,"cut":false,"hidden":false,"merged":[[203,7,203,8],[203,9,203,10],[18,19,18,22],[10,7,10,11],[20,19,20,22]]}
[]
[]
[]
[]
[]
[]
[]
[null,null,null,null,null,null,null,null,null,null,null,null,null,null,null,null,null,null,null,{"$f":"Entrate!T8","v":"Obiettivi di entrata mensili"},null,null,null,null,0]
[]
[null,null,null,null,null,null,null,null,null,null,null,null,null,null,null,null,null,null,null,{"$f":"Entrate!T10","v":"Obiettivi di uscita mensili"},null,null,null,null,0]
[null,null,null,null,null,null,null,"Qual è l'orizzonte temporale della tua pianificazione?",null,null,null,null,null,null,"Mensile"]
[null,null,null,null,null,null,null,null,null,null,null,null,null,null,null,null,null,null,null,{"$f":"Entrate!T12","v":"Obiettivi di risparmio mensili"},null,null,null,null,0]
[null,null,"Categorie di Uscita",null,null,null,null,"Periodicità",null,"Tipologia",null,"Importo",null,"Totale"]
[]
[null,null,"Casa",null,null,null,null,null,null,null,null,null,null,{"$f":"SUM(N17:N42)","v":0}]
[]
[null,null,null,"Rata del mutuo",null,null,null,"Mensile",null,"Necessaria",null,0,null,{"$f":"calcolaBasePeriodo(H17,L17,$O$11)","v":0}]
[]
[null,null,null,"Affitto",null,null,null,"Mensile",null,"Necessaria",null,0,null,{"$f":"calcolaBasePeriodo(H19,L19,$O$11)","v":0},null,null,null,null,null,"Tipologia di entrate",null,null,null,null,"Tutte"]
[]
[null,null,null,"Tasse",null,null,null,"Mensile",null,"Necessaria",null,0,null,{"$f":"calcolaBasePeriodo(H21,L21,$O$11)","v":0},null,null,null,null,null,"Tipologia di uscite",null,null,null,null,"Tutte"]
[]
[null,null,null,"Spese condominiali",null,null,null,"Mensile",null,"Necessaria",null,0,null,{"$f":"calcolaBasePeriodo(H23,L23,$O$11)","v":0},null,null,null,null,null,{"$f":"Entrate!T23","v":"Entrate mensili "},null,null,null,null,{"$f":"Entrate!Y23","v":0}]
[]
[null,null,null,"Acqua",null,null,null,"Mensile",null,"Necessaria",null,0,null,{"$f":"calcolaBasePeriodo(H25,L25,$O$11)","v":0},null,null,null,null,null,{"$f":"Uscite_Entrate","v":"Uscite mensili "},null,null,null,null,{"$f":"SUM(Y27:Y48)","v":0}]
[]
[null,null,null,"Elettricità",null,null,null,"Mensile",null,"Necessaria",null,0,null,{"$f":"calcolaBasePeriodo(H27,L27,$O$11)","v":0},null,null,null,null,null,null,"Casa",null,null,null,{"$f":"sommaBaseTipologia(J17:J42,N17:N42,$Y$19)","v":0}]
[]
[null,null,null,"Gas",null,null,null,"Mensile",null,"Necessaria",null,0,null,{"$f":"calcolaBasePeriodo(H29,L29,$O$11)","v":0},null,null,null,null,null,null,"Alimenti",null,null,null,{"$f":"sommaBaseTipologia(J48:J53,N48:N53,$Y$21)","v":0}]
[]
[null,null,null,"Riscaldamento centralizzato",null,null,null,"Mensile",null,"Necessaria",null,0,null,{"$f":"calcolaBasePeriodo(H31,L31,$O$11)","v":0},null,null,null,null,null,null,"Spese per la persona",null,null,null,{"$f":"sommaBaseTipologia(J59:J74,N59:N74,$Y$21)","v":0}]
[]
[null,null,null,"Internet e telefono",null,null,null,"Mensile",null,"Necessaria",null,0,null,{"$f":"calcolaBasePeriodo(H33,L33,$O$11)","v":0},null,null,null,null,null,null,"Salute",null,null,null,{"$f":"sommaBaseTipologia(J80:J89,N80:N89,$Y$21)","v":0}]
[]
[null,null,null,"Abbonamento TV",null,null,null,"Mensile",null,"Necessaria",null,0,null,{"$f":"calcolaBasePeriodo(H35,L35,$O$11)","v":0},null,null,null,null,null,null,"Famiglia",null,null,null,{"$f":"sommaBaseTipologia(J95:J112,N95:N112,$Y$19)","v":0}]
[]
[null,null,null,"Mobili e articoli per la casa",null,null,null,"Mensile",null,"Necessaria",null,0,null,{"$f":"calcolaBasePeriodo(H37,L37,$O$11)","v":0},null,null,null,null,null,null,"Istruzione",null,null,null,{"$f":"sommaBaseTipologia(J118:J125,N118:N125,$Y$21)","v":0}]
[]
[null,null,null,"Manutenzione elettrodomestici",null,null,null,"Mensile",null,"Necessaria",null,0,null,{"$f":"calcolaBasePeriodo(H39,L39,$O$11)","v":0},null,null,null,null,null,null,"Trasporti",null,null,null,{"$f":"sommaBaseTipologia(J131:J149,N131:N149,$Y$21)","v":0}]
[]
[null,null,null,"Assicurazione sulla casa",null,null,null,"Mensile",null,"Necessaria",null,0,null,{"$f":"calcolaBasePeriodo(H41,L41,$O$11)","v":0},null,null,null,null,null,null,"Tempo libero",null,null,null,{"$f":"sommaBaseTipologia(J156:J167,N156:N167,$Y$21)","v":0}]
[]
[null,null,null,null,null,null,null,null,null,null,null,null,null,null,null,null,null,null,null,null,"Animali domestici",null,null,null,{"$f":"sommaBaseTipologia(J173:J178,N173:N178,$Y$21)","v":0}]
[]
[null,null,null,null,null,null,null,null,null,null,null,null,null,null,null,null,null,null,null,null,"Gestione finanziaria",null,null,null,{"$f":"sommaBaseTipologia(J184:J191,N184:N191,$Y$21)","v":0}]
[null,null,"Alimenti",null,null,null,null,null,null,null,null,null,null,{"$f":"SUM(N48:N53)","v":0}]
[null,null,null,null,null,null,null,null,null,null,null,null,null,null,null,null,null,null,null,null,"Altre spese",null,null,null,{"$f":"sommaBaseTipologia(J197:J200,N197:N200,$Y$19)","v":0}]
[null,null,null,"Spesa alimentare",null,null,null,"Mensile",null,"Necessaria",null,0,null,{"$f":"calcolaBasePeriodo(H48,L48,$O$11)","v":0}]
[null,null,null,null,null,null,null,null,null,null,null,null,null,null,null,null,null,null,null,{"$f":"Entrate!T59","v":"Risparmi mensili (entrate - uscite)"},null,null,null,null,{"$f":"Risparmi!Y27","v":0}]
[null,null,null,"Ristorante e take-away",null,null,null,"Mensile",null,"Necessaria",null,0,null,{"$f":"calcolaBasePeriodo(H50,L50,$O$11)","v":0}]
[]
[null,null,null,"Bar e snack",null,null,null,"Mensile",null,"Necessaria",null,0,null,{"$f":"calcolaBasePeriodo(H52,L52,$O$11)","v":0}]
[]
[]
[]
[]
[null,null,"Spese per la persona",null,null,null,null,null,null,null,null,null,null,{"$f":"SUM(N59:N74)","v":0}]
[]
[null,null,null,"Abbigliamento",null,null,null,"Mensile",null,"Necessaria",null,0,null,{"$f":"calcolaBasePeriodo(H59,L59,$O$11)","v":0}]
[]
[null,null,null,"Calzature",null,null,null,"Mensile",null,"Necessaria",null,0,null,{"$f":"calcolaBasePeriodo(H61,L61,$O$11)","v":0}]
[]
[null,null,null,"Abbonamento cellulare",null,null,null,"Mensile",null,"Necessaria",null,0,null,{"$f":"calcolaBasePeriodo(H63,L63,$O$11)","v":0}]
[]
[null,null,null,"Parrucchiere ed estetista",null,null,null,"Mensile",null,"Necessaria",null,0,null,{"$f":"calcolaBasePeriodo(H65,L65,$O$11)","v":0}]
[]
[null,null,null,"Cosmetici",null,null,null,"Mensile",null,"Necessaria",null,0,null,{"$f":"calcolaBasePeriodo(H67,L67,$O$11)","v":0}]
[]
[null,null,null,"Gioielli e accessori",null,null,null,"Mensile",null,"Necessaria",null,0,null,{"$f":"calcolaBasePeriodo(H69,L69,$O$11)","v":0}]
[]
[null,null,null,"Lavanderia",null,null,null,"Mensile",null,"Necessaria",null,0,null,{"$f":"calcolaBasePeriodo(H71,L71,$O$11)","v":0}]
[]
[null,null,null,"Elettronica di consumo",null,null,null,"Mensile",null,"Necessaria",null,0,null,{"$f":"calcolaBasePeriodo(H73,L73,$O$11)","v":0}]
[]
[]
[]
[]
[null,null,"Salute",null,null,null,null,null,null,null,null,null,null,{"$f":"SUM(N80:N89)","v":0}]
[]
[null,null,null,"Farmaci",null,null,null,"Mensile",null,"Necessaria",null,0,null,{"$f":"calcolaBasePeriodo(H80,L80,$O$11)","v":0}]
[]
[null,null,null,"Visite mediche",null,null,null,"Mensile",null,"Necessaria",null,0,null,{"$f":"calcolaBasePeriodo(H82,L82,$O$11)","v":0}]
[]
[null,null,null,"Accertamenti sanitari",null,null,null,"Mensile",null,"Necessaria",null,0,null,{"$f":"calcolaBasePeriodo(H84,L84,$O$11)","v":0}]
[]
[null,null,null,"Articoli sanitari",null,null,null,"Mensile",null,"Necessaria",null,0,null,{"$f":"calcolaBasePeriodo(H86,L86,$O$11)","v":0}]
[]
[null,null,null,"Assicurazioni vita e malattia",null,null,null,"Mensile",null,"Necessaria",null,0,null,{"$f":"calcolaBasePeriodo(H88,L88,$O$11)","v":0}]
[]
[]
[]
[]
[null,null,"Famiglia",null,null,null,null,null,null,null,null,null,null,{"$f":"SUM(N95:N112)","v":0}]
[]
[null,null,null,"Prodotti per bambini e giocattoli",null,null,null,"Mensile",null,"Necessaria",null,0,null,{"$f":"calcolaBasePeriodo(H95,L95,$O$11)","v":0}]
[]
[null,null,null,"Retta scolastica figli",null,null,null,"Mensile",null,"Necessaria",null,0,null,{"$f":"calcolaBasePeriodo(H97,L97,$O$11)","v":0}]
[]
[null,null,null,"Accessori scolastici figli",null,null,null,"Mensile",null,"Necessaria",null,0,null,{"$f":"calcolaBasePeriodo(H99,L99,$O$11)","v":0}]
[]
[null,null,null,"Sport e attività figli",null,null,null,"Mensile",null,"Necessaria",null,0,null,{"$f":"calcolaBasePeriodo(H101,L101,$O$11)","v":0}]
[]
[null,null,null,"Baby-sitting",null,null,null,"Mensile",null,"Necessaria",null,0,null,{"$f":"calcolaBasePeriodo(H103,L103,$O$11)","v":0}]
[]
[null,null,null,"Assistenza ai familiari (es. badante)",null,null,null,"Mensile",null,"Necessaria",null,0,null,{"$f":"calcolaBasePeriodo(H105,L105,$O$11)","v":0}]
[]
[null,null,null,"Festività e ricorrenze",null,null,null,"Mensile",null,"Necessaria",null,0,null,{"$f":"calcolaBasePeriodo(H107,L107,$O$11)","v":0}]
[]
[null,null,null,"Gite e vacanze",null,null,null,"Mensile",null,"Necessaria",null,0,null,{"$f":"calcolaBasePeriodo(H109,L109,$O$11)","v":0}]
[]
[null,null,null,"Paghette e aiuti economici",null,null,null,"Mensile",null,"Necessaria",null,0,null,{"$f":"calcolaBasePeriodo(H111,L111,$O$11)","v":0}]
[]
[]
[]
[]
[null,null,"Istruzione",null,null,null,null,null,null,null,null,null,null,{"$f":"SUM(N118:N125)","v":0}]
[]
[null,null,null,"Libri di testo",null,null,null,"Mensile",null,"Necessaria",null,0,null,{"$f":"calcolaBasePeriodo(H118,L118,$O$11)","v":0}]
[]
[null,null,null,"Tasse e rette",null,null,null,"Mensile",null,"Necessaria",null,0,null,{"$f":"calcolaBasePeriodo(H120,L120,$O$11)","v":0}]
[]
[null,null,null,"Corsi di formazione",null,null,null,"Mensile",null,"Necessaria",null,0,null,{"$f":"calcolaBasePeriodo(H122,L122,$O$11)","v":0}]
[]
[null,null,null,"Cancelleria",null,null,null,"Mensile",null,"Necessaria",null,0,null,{"$f":"calcolaBasePeriodo(H124,L124,$O$11)","v":0}]
[]
[]
[]
[]
[null,null,"Trasporti",null,null,null,null,null,null,null,null,null,null,{"$f":"SUM(N131:N150)","v":0}]
[]
[null,null,null,"Biglietti e abbonamenti",null,null,null,"Mensile",null,"Necessaria",null,0,null,{"$f":"calcolaBasePeriodo(H131,L131,$O$11)","v":0}]
[]
[null,null,null,"Carburante",null,null,null,"Mensile",null,"Necessaria",null,0,null,{"$f":"calcolaBasePeriodo(H133,L133,$O$11)","v":0}]
[]
[null,null,null,"Parcheggio",null,null,null,"Mensile",null,"Necessaria",null,0,null,{"$f":"calcolaBasePeriodo(H135,L135,$O$11)","v":0}]
[]
[null,null,null,"Pedaggi autostradali",null,null,null,"Mensile",null,"Necessaria",null,0,null,{"$f":"calcolaBasePeriodo(H137,L137,$O$11)","v":0}]
[]
[null,null,null,"Viaggi aerei e ferroviari",null,null,null,"Mensile",null,"Necessaria",null,0,null,{"$f":"calcolaBasePeriodo(H139,L139,$O$11)","v":0}]
[]
[null,null,null,"Bollo e tasse",null,null,null,"Mensile",null,"Necessaria",null,0,null,{"$f":"calcolaBasePeriodo(H141,L141,$O$11)","v":0}]
[]
[null,null,null,"Assicurazioni veicoli",null,null,null,"Mensile",null,"Necessaria",null,0,null,{"$f":"calcolaBasePeriodo(H143,L143,$O$11)","v":0}]
[]
[null,null,null,"Acquisto veicoli",null,null,null,"Mensile",null,"Necessaria",null,0,null,{"$f":"calcolaBasePeriodo(H145,L145,$O$11)","v":0}]
[]
[null,null,null,"Manutenzione veicoli",null,null,null,"Mensile",null,"Necessaria",null,0,null,{"$f":"calcolaBasePeriodo(H147,L147,$O$11)","v":0}]
[]
[null,null,null,"Revisione veicoli",null,null,null,"Mensile",null,"Necessaria",null,0,null,{"$f":"calcolaBasePeriodo(H149,L149,$O$11)","v":0}]
[]
[]
[]
[]
[null,null,"Tempo libero",null,null,null,null,null,null,null,null,null,null,{"$f":"SUM(N156:N167)","v":0}]
[]
[null,null,null,"Hobby",null,null,null,"Mensile",null,"Necessaria",null,0,null,{"$f":"calcolaBasePeriodo(H156,L156,$O$11)","v":0}]
[]
[null,null,null,"Palestra e sport",null,null,null,"Mensile",null,"Necessaria",null,0,null,{"$f":"calcolaBasePeriodo(H158,L158,$O$11)","v":0}]
[]
[null,null,null,"Libri, giornali e riviste",null,null,null,"Mensile",null,"Necessaria",null,0,null,{"$f":"calcolaBasePeriodo(H160,L160,$O$11)","v":0}]
[]
[null,null,null,"Ricreazione, spettacoli e cultura",null,null,null,"Mensile",null,"Necessaria",null,0,null,{"$f":"calcolaBasePeriodo(H162,L162,$O$11)","v":0}]
[]
[null,null,null,"Iscrizioni e abbonamenti",null,null,null,"Mensile",null,"Necessaria",null,0,null,{"$f":"calcolaBasePeriodo(H164,L164,$O$11)","v":0}]
[]
[null,null,null,"Viaggi",null,null,null,"Mensile",null,"Necessaria",null,0,null,{"$f":"calcolaBasePeriodo(H166,L166,$O$11)","v":0}]
[]
[]
[]
[]
[null,null,"Animali domestici",null,null,null,null,null,null,null,null,null,null,{"$f":"SUM(N173:N178)","v":0}]
[]
[null,null,null,"Alimenti ed accessori",null,null,null,"Mensile",null,"Necessaria",null,0,null,{"$f":"calcolaBasePeriodo(H173,L173,$O$11)","v":0}]
[]
[null,null,null,"Veterinario e farmaci",null,null,null,"Mensile",null,"Necessaria",null,0,null,{"$f":"calcolaBasePeriodo(H175,L175,$O$11)","v":0}]
[]
[null,null,null,"Benessere (es. toeletta)",null,null,null,"Mensile",null,"Necessaria",null,0,null,{"$f":"calcolaBasePeriodo(H177,L177,$O$11)","v":0}]
[]
[]
[]
[]
[null,null,"Gestione finanziaria",null,null,null,null,null,null,null,null,null,null,{"$f":"SUM(N184:N191)","v":0}]
[]
[null,null,null,"Canone conto corrente",null,null,null,"Mensile",null,"Necessaria",null,0,null,{"$f":"calcolaBasePeriodo(H184,L184,$O$11)","v":0}]
[]
[null,null,null,"Canone carta di credito",null,null,null,"Mensile",null,"Necessaria",null,0,null,{"$f":"calcolaBasePeriodo(H186,L186,$O$11)","v":0}]
[]
[null,null,null,"Pagamento prestiti e interessi",null,null,null,"Mensile",null,"Necessaria",null,0,null,{"$f":"calcolaBasePeriodo(H188,L188,$O$11)","v":0}]
[]
[null,null,null,"Acquisto strumenti finanziari (azioni, ecc.)",null,null,null,"Mensile",null,"Necessaria",null,0,null,{"$f":"calcolaBasePeriodo(H190,L190,$O$11)","v":0}]
[]
[]
[]
[]
[null,null,"Altre spese",null,null,null,null,null,null,null,null,null,null,{"$f":"SUM(N197:N200)","v":0}]
[]
[null,null,null,"Regali",null,null,null,"Mensile",null,"Necessaria",null,0,null,{"$f":"calcolaBasePeriodo(H197,L197,$O$11)","v":0}]
[]
[null,null,null,"Beneficienza",null,null,null,"Mensile",null,"Necessaria",null,0,null,{"$f":"calcolaBasePeriodo(H199,L199,$O$11)","v":0}]
[]
[]
[]
[]
[null,null,null,null,null,null,null,null,null,"Totale mensile",null,{"$f":"SUM(N195,N182,N171,N154,N129,N116,N93,N78,N57,N46,N15)","v":0}]

{"sheet":"Risparmi","index":4,"n_rows":51,"n_cols":25,"rows_kept":51,"cut":false,"hidden":false,"merged":[[10,7,10,11],[34,7,34,8],[34,9,34,10],[49,10,49,14],[17,19,17,22],[18,19,18,22],[47,10,47,14],[45,10,45,14],[12,7,12,11],[20,19,20,22]]}
[]
[]
[]
[]
[]
[]
[]
[null,null,null,null,null,null,null,null,null,null,null,null,null,null,null,null,null,null,null,{"$f":"Entrate!T8","v":"Obiettivi di entrata mensili"},null,null,null,null,0]
[]
[null,null,null,null,null,null,null,null,null,null,null,null,null,null,null,null,null,null,null,{"$f":"Entrate!T10","v":"Obiettivi di uscita mensili"},null,null,null,null,0]
[null,null,null,null,null,null,null," Qual è l'orizzonte temporale della tua pianificazione?",null,null,null,null,null,null,"Mensile"]
[null,null,null,null,null,null,null,null,null,null,null,null,null,null,null,null,null,null,null,{"$f":"Entrate!T12","v":"Obiettivi di risparmio mensili"},null,null,null,null,0]
[null,null,null,null,null,null,null,"Il tuo risparmio allocabile ammonta a:",null,null,null,null,null,null,{"$f":"Y27","v":0}]
[]
[null,null,"Categorie di Risparmio",null,null,null,null,"Periodicità",null,null,null,"Importo",null,"Totale"]
[]
[]
[null,null,"Risparmio precauzionale",null,null,null,null,"Mensile",null,null,null,0,null,{"$f":"calcolaBasePeriodo(H18,L18,$O$11)","v":0}]
[null,null,null,null,null,null,null,null,null,null,null,null,null,null,null,null,null,null,null,"Tipologia di entrate",null,null,null,null,"Tutte"]
[null,null,"Acquisto casa",null,null,null,null,"Mensile",null,null,null,0,null,{"$f":"calcolaBasePeriodo(H20,L20,$O$11)","v":0}]
[null,null,null,null,null,null,null,null,null,null,null,null,null,null,null,null,null,null,null,"Tipologia di uscite",null,null,null,null,"Tutte"]
[null,null,"Ristrutturazione casa",null,null,null,null,"Mensile",null,null,null,0,null,{"$f":"calcolaBasePeriodo(H22,L22,$O$11)","v":0}]
[null,null,null,null,null,null,null,null,null,null,null,null,null,null,null,null,null,null,null,{"$f":"Entrate!T23","v":"Entrate mensili "},null,null,null,null,{"$f":"Entrate!Y23","v":0}]
[null,null,"Acquisto veicoli",null,null,null,null,"Mensile",null,null,null,0,null,{"$f":"calcolaBasePeriodo(H24,L24,$O$11)","v":0}]
[null,null,null,null,null,null,null,null,null,null,null,null,null,null,null,null,null,null,null,{"$f":"Uscite_Entrate","v":"Uscite mensili "},null,null,null,null,{"$f":"Uscite!Y25","v":0}]
[null,null,"Istruzione",null,null,null,null,"Mensile",null,null,null,0,null,{"$f":"calcolaBasePeriodo(H26,L26,$O$11)","v":0}]
[null,null,null,null,null,null,null,null,null,null,null,null,null,null,null,null,null,null,null,{"$f":"Entrate!T59","v":"Risparmi mensili (entrate - uscite)"},null,null,null,null,{"$f":"Y23-Y25","v":0}]
[null,null,"Matrimonio",null,null,null,null,"Mensile",null,null,null,0,null,{"$f":"calcolaBasePeriodo(H28,L28,$O$11)","v":0}]
[null,null,null,null,null,null,null,null,null,null,null,null,null,null,null,null,null,null,null,"Risparmi mensili allocati",null,null,null,null,{"$f":"SUM(N18:N31)","v":0}]
[null,null,"Previdenza complementare",null,null,null,null,"Mensile",null,null,null,0,null,{"$f":"calcolaBasePeriodo(H30,L30,$O$11)","v":0}]
[null,null,null,null,null,null,null,null,null,null,null,null,null,null,null,null,null,null,null,null,"Risparmio precauzionale",null,null,null,{"$f":"N18","v":0}]
[]
[null,null,null,null,null,null,null,null,null,null,null,null,null,null,null,null,null,null,null,null,"Acquisto casa",null,null,null,{"$f":"N20","v":0}]
[]
[null,null,null,null,null,null,null,null,null,"Totale mensile",null,{"$f":"SUM(N18:N31)","v":0},null,null,null,null,null,null,null,null,"Ristrutturazione casa",null,null,null,{"$f":"N22","v":0}]
[]
[null,null,null,null,null,null,null,null,null,null,null,null,null,null,null,null,null,null,null,null,"Acquisto veicoli",null,null,null,{"$f":"N24","v":0}]
[]
[null,null,null,null,null,null,null,null,null,null,null,null,null,null,null,null,null,null,null,null,"Istruzione",null,null,null,{"$f":"N26","v":0}]
[]
[null,null,null,null,null,null,null,null,null,null,null,null,null,null,null,null,null,null,null,null,"Matrimonio",null,null,null,{"$f":"N28","v":0}]
[]
[null,null,null,null,null,null,null,null,null,null,null,null,null,null,null,null,null,null,null,null,"Previdenza complementare",null,null,null,{"$f":"calcolaBasePeriodo(H30,L30,$O$11)","v":0}]
[]
[null,null,"Obiettivo di risparmio",null,null,null,"Inserisci obiettivo di risparmio",null,null,null,null,null,null,null,null,null,null,null,null,"Saldo disponibile mensile",null,null,null,null,{"$f":"Y27-Y29","v":0}]
[null,null,null,null,null,null,null,null,null,null,"Dovrai risparmiare"]
[null,null,"Somma da risparmiare",null,null,null,0]
[null,null,null,null,null,null,null,null,null,null,0]
[null,null,"Periodicità del risparmio",null,null,null,"Mensile"]
[null,null,null,null,null,null,null,null,null,null,{"$f":"CONCATENATE(IF(G49=\"Giornaliera\",\"al giorno\",IF(G49=\"Settimanale\", \"a settimana\",IF(G49=\"Mensile\",\"al mese\",IF(G49=\"Bimestrale\",\"a bimestre\",IF(G49=\"Semestrale\",\"a semestre\",IF(G49=\"Annuale\", \"all'anno\")))))),\" per raggiungere il tuo obiettivo.\")","v":"al mese per raggiungere il tuo obiettivo."},null,null,null,null,null,null," "]
[null,null,"Periodo di riferimento",null,null,null,1,{"$f":"IF(G49=\"Giornaliera\",IF(G51=1, \"giorno\",\"giorni\"),IF(G49=\"Settimanale\",IF(G51=1,\"settimana\",\"settimane\"),IF(G49=\"Mensile\",IF(G51=1, \"mese\",\"mesi\"),IF(G49=\"Bimestrale\",IF(G51=1, \"bimestre\",\"bimestri\"),IF(G49=\"Semestrale\",IF(G51=1, \"semestre\",\"semestri\"),IF(G49=\"Annuale\",IF(G51=1, \"anno\",\"anni\")))))))","v":"mese"}]

{"sheet":"Sheet1","index":5,"n_rows":20,"n_cols":9,"rows_kept":20,"cut":false,"hidden":true,"merged":[]}
["Risparmio precauzionale"]
["Acquisto casa"]
["Ristrutturazione casa"]
["Acquisto veicoli"]
["Istruzione"]
["Matrimonio"]
["Previdenza complementare"]
[]
[]
[]
[]
[]
[]
[]
[]
[]
[]
[null,null,null,null,null,null,"Entrate","Mensile",0]
[null,null,null,null,null,null,"Uscite","Mensile",0]
[null,null,null,null,null,null,"Risparmi","Mensile",0]

{"sheet":"Prospetti di sintesi","index":6,"n_rows":99,"n_cols":25,"rows_kept":99,"cut":false,"hidden":false,"merged":[[10,7,10,11],[18,19,18,22],[20,19,20,22]]}
[]
[]
[]
[]
[]
[]
[]
[null,null,null,null,null,null,null,null,null,null,null,null,null,null,null,null,null,null,null,{"$f":"Entrate!T8","v":"Obiettivi di entrata mensili"},null,null,null,null,0]
[]
[null,null,null,null,null,null,null,null,null,null,null,null,null,null,null,null,null,null,null,{"$f":"Entrate!T10","v":"Obiettivi di uscita mensili"},null,null,null,null,0]
[null,null,null,null,null,null,null,"Qual è l'orizzonte temporale della tua pianificazione?",null,null,null,null,null,null,"Mensile"]
[null,null,null,null,null,null,null,null,null,null,null,null,null,null,null,null,null,null,null,{"$f":"Entrate!T12","v":"Obiettivi di risparmio mensili"},null,null,null,null,0]
[]
[]
[]
[]
[]
[]
[null,null,null,null,null,null,null,null,null,null,null,null,null,null,null,null,null,null,null,"Tipologia di entrate",null,null,null,null,"Tutte"]
[]
[null,null,null,null,null,null,null,null,null,null,null,null,null,null,null,null,null,null,null,"Tipologia di uscite",null,null,null,null,"Tutte"]
[]
[null,null,null,null,null,null,null,null,null,null,null,null,null,null,null,null,null,null,null,{"$f":"Entrate!T23","v":"Entrate mensili "},null,null,null,null,{"$f":"Entrate!Y23","v":0}]
[]
[null,null,null,null,null,null,null,null,null,null,null,null,null,null,null,null,null,null,null,null,"Reddito da lavoro dipendente",null,null,null,{"$f":"Entrate!Y25","v":0}]
[]
[null,null,null,null,null,null,null,null,null,null,null,null,null,null,null,null,null,null,null,null,"Straordinari",null,null,null,{"$f":"Entrate!Y27","v":0}]
[]
[null,null,null,null,null,null,null,null,null,null,null,null,null,null,null,null,null,null,null,null,"Bonus",null,null,null,{"$f":"Entrate!Y29","v":0}]
[]
[null,null,null,null,null,null,null,null,null,null,null,null,null,null,null,null,null,null,null,null,"Reddito da lavoro autonomo",null,null,null,{"$f":"Entrate!Y31","v":0}]
[]
[null,null,null,null,null,null,null,null,null,null,null,null,null,null,null,null,null,null,null,null,"Reddito di impresa",null,null,null,{"$f":"Entrate!Y33","v":0}]
[]
[null,null,null,null,null,null,null,null,null,null,null,null,null,null,null,null,null,null,null,null,"Reddito del partner",null,null,null,{"$f":"Entrate!Y35","v":0}]
[]
[null,null,null,null,null,null,null,null,null,null,null,null,null,null,null,null,null,null,null,null,"Reddito di cittadinanza",null,null,null,{"$f":"Entrate!Y37","v":0}]
[]
[null,null,null,null,null,null,null,null,null,null,null,null,null,null,null,null,null,null,null,null,"Reddito di emergenza",null,null,null,{"$f":"Entrate!Y39","v":0}]
[]
[null,null,null,null,null,null,null,null,null,null,null,null,null,null,null,null,null,null,null,null,"Pensione",null,null,null,{"$f":"Entrate!Y41","v":0}]
[]
[null,null,null,null,null,null,null,null,null,null,null,null,null,null,null,null,null,null,null,null,"Assegni familiari",null,null,null,{"$f":"Entrate!Y43","v":0}]
[]
[null,null,null,null,null,null,null,null,null,null,null,null,null,null,null,null,null,null,null,null,"Assegni sociali",null,null,null,{"$f":"Entrate!Y45","v":0}]
[]
[null,null,null,null,null,null,null,null,null,null,null,null,null,null,null,null,null,null,null,null,"Rimborsi tasse",null,null,null,{"$f":"Entrate!Y47","v":0}]
[]
[null,null,null,null,null,null,null,null,null,null,null,null,null,null,null,null,null,null,null,null,"Sovvenzioni",null,null,null,{"$f":"Entrate!Y49","v":0}]
[]
[null,null,null,null,null,null,null,null,null,null,null,null,null,null,null,null,null,null,null,null,"Rendite da immobili in locazione",null,null,null,{"$f":"Entrate!Y51","v":0}]
[]
[null,null,null,null,null,null,null,null,null,null,null,null,null,null,null,null,null,null,null,null,"Rendite da terreni",null,null,null,{"$f":"Entrate!Y53","v":0}]
[]
[null,null,null,null,null,null,null,null,null,null,null,null,null,null,null,null,null,null,null,null,"Rendite finanziarie",null,null,null,{"$f":"Entrate!Y55","v":0}]
[]
[null,null,null,null,null,null,null,null,null,null,null,null,null,null,null,null,null,null,null,{"$f":"Uscite!T25","v":"Uscite mensili "},null,null,null,null,{"$f":"Uscite!Y25","v":0}]
[]
[null,null,null,null,null,null,null,null,null,null,null,null,null,null,null,null,null,null,null,null,"Casa",null,null,null,{"$f":"Uscite!Y27","v":0}]
[]
[null,null,null,null,null,null,null,null,null,null,null,null,null,null,null,null,null,null,null,null,"Alimenti",null,null,null,{"$f":"Uscite!Y29","v":0}]
[]
[null,null,null,null,null,null,null,null,null,null,null,null,null,null,null,null,null,null,null,null,"Spese per la persona",null,null,null,{"$f":"Uscite!Y31","v":0}]
[]
[null,null,null,null,null,null,null,null,null,null,null,null,null,null,null,null,null,null,null,null,"Salute",null,null,null,{"$f":"Uscite!Y33","v":0}]
[]
[null,null,null,null,null,null,null,null,null,null,null,null,null,null,null,null,null,null,null,null,"Famiglia",null,null,null,{"$f":"Uscite!Y35","v":0}]
[]
[null,null,null,null,null,null,null,null,null,null,null,null,null,null,null,null,null,null,null,null,"Istruzione",null,null,null,{"$f":"Uscite!Y37","v":0}]
[]
[null,null,null,null,null,null,null,null,null,null,null,null,null,null,null,null,null,null,null,null,"Trasporti",null,null,null,{"$f":"Uscite!Y39","v":0}]
[]
[null,null,null,null,null,null,null,null,null,null,null,null,null,null,null,null,null,null,null,null,"Tempo libero",null,null,null,{"$f":"Uscite!Y41","v":0}]
[]
[null,null,null,null,null,null,null,null,null,null,null,null,null,null,null,null,null,null,null,null,"Animali domestici",null,null,null,{"$f":"Uscite!Y43","v":0}]
[]
[null,null,null,null,null,null,null,null,null,null,null,null,null,null,null,null,null,null,null,null,"Gestione finanziaria",null,null,null,{"$f":"Uscite!Y45","v":0}]
[]
[null,null,null,null,null,null,null,null,null,null,null,null,null,null,null,null,null,null,null,null,"Altre spese",null,null,null,{"$f":"Uscite!Y47","v":0}]
[]
[null,null,null,null,null,null,null,null,null,null,null,null,null,null,null,null,null,null,null,{"$f":"Risparmi!T27","v":"Risparmi mensili (entrate - uscite)"},null,null,null,null,{"$f":"Risparmi!Y27","v":0}]
[]
[null,null,null,null,null,null,null,null,null,null,null,null,null,null,null,null,null,null,null,{"$f":"Risparmi!T29","v":"Risparmi mensili allocati"},null,null,null,null,{"$f":"Risparmi!Y29","v":0}]
[]
[null,null,null,null,null,null,null,null,null,null,null,null,null,null,null,null,null,null,null,null,"Risparmio precauzionale",null,null,null,{"$f":"Risparmi!Y31","v":0}]
[]
[null,null,null,null,null,null,null,null,null,null,null,null,null,null,null,null,null,null,null,null,"Acquisto casa",null,null,null,{"$f":"Risparmi!Y33","v":0}]
[]
[null,null,null,null,null,null,null,null,null,null,null,null,null,null,null,null,null,null,null,null,"Ristrutturazione casa",null,null,null,{"$f":"Risparmi!Y35","v":0}]
[]
[null,null,null,null,null,null,null,null,null,null,null,null,null,null,null,null,null,null,null,null,"Acquisto veicoli",null,null,null,{"$f":"Risparmi!Y37","v":0}]
[]
[null,null,null,null,null,null,null,null,null,null,null,null,null,null,null,null,null,null,null,null,"Istruzione",null,null,null,{"$f":"Risparmi!Y39","v":0}]
[]
[null,null,null,null,null,null,null,null,null,null,null,null,null,null,null,null,null,null,null,null,"Matrimonio",null,null,null,{"$f":"Risparmi!Y41","v":0}]
[]
[null,null,null,null,null,null,null,null,null,null,null,null,null,null,null,null,null,null,null,null,"Previdenza complementare",null,null,null,{"$f":"Uscite!Y47","v":0}]
[]
[null,null,null,null,null,null,null,null,null,null,null,null,null,null,null,null,null,null,null,{"$f":"Risparmi!T45","v":"Saldo disponibile mensile"},null,null,null,null,{"$f":"Risparmi!Y45","v":0}]

{"sheet":"Nota giornaliera","index":7,"n_rows":96,"n_cols":22,"rows_kept":96,"cut":false,"hidden":false,"merged":[[127,18,127,23],[107,18,107,23],[122,18,122,23],[123,18,123,23],[124,18,124,23],[125,18,125,23],[126,18,126,23],[127,11,127,16],[108,18,108,23],[109,18,109,23],[110,18,110,23],[111,18,111,23],[112,18,112,23],[113,18,113,23],[114,18,114,23],[115,18,115,23],[116,18,116,23],[117,18,117,23],[118,18,118,23],[119,18,119,23],[120,18,120,23],[121,18,121,23],[122,11,122,16],[123,11,123,16],[124,11,124,16],[125,11,125,16],[126,11,126,16],[117,11,117,16],[118,11,118,16],[119,11,119,16],[121,11,121,16],[120,11,120,16],[93,4,93,6],[95,17,95,19],[105,11,105,16],[105,18,105,23],[107,11,107,16],[113,11,113,16],[114,11,114,16],[115,11,115,16],[116,11,116,16],[108,11,108,16],[109,11,109,16],[110,11,110,16],[111,11,111,16],[112,11,112,16]]}
[]
[]
[]
[]
[]
[]
[]
[]
[]
[]
[null,null,"Categoria",null,null,null,null,"Lunedì",null,"Martedì",null,"Mercoledì",null,"Giovedì",null,"Venerdì",null,"Sabato",null,"Domenica",null,"Totale"]
[]
[null,null,"Alimenti",null,null,null,null,null,null,null,null,null,null,null,null,null,null,null,null,null,null,{"$f":"SUM(V15:V20)","v":0}]
[]
[null,null,null,"Spesa alimentare",null,null,null,0,null,0,null,0,null,0,null,0,null,0,null,0,null,{"$f":"SUM(H15,J15,L15,N15,P15,R15,T15)","v":0}]
[]
[null,null,null,"Ristorante e take-away",null,null,null,0,null,0,null,0,null,0,null,0,null,0,null,0,null,{"$f":"SUM(H17,J17,L17,N17,P17,R17,T17)","v":0}]
[]
[null,null,null,"Bar e snack",null,null,null,0,null,0,null,0,null,0,null,0,null,0,null,0,null,{"$f":"SUM(H19,J19,L19,N19,P19,R19,T19)","v":0}]
[]
[]
[]
[]
[null,null,"Spese per la persona",null,null,null,null,null,null,null,null,null,null,null,null,null,null,null,null,null,null,{"$f":"SUM(V26:V31)","v":0}]
[]
[null,null,null,"Parrucchiere ed estetista",null,null,null,0,null,0,null,0,null,0,null,0,null,0,null,0,null,{"$f":"SUM(H26,J26,L26,N26,P26,R26,T26)","v":0}]
[]
[null,null,null,"Cosmetici",null,null,null,0,null,0,null,0,null,0,null,0,null,0,null,0,null,{"$f":"SUM(H28,J28,L28,N28,P28,R28,T28)","v":0}]
[]
[null,null,null,"Lavanderia",null,null,null,0,null,0,null,0,null,0,null,0,null,0,null,0,null,{"$f":"SUM(H30,J30,L30,N30,P30,R30,T30)","v":0}]
[]
[]
[]
[]
[null,null,"Salute",null,null,null,null,null,null,null,null,null,null,null,null,null,null,null,null,null,null,{"$f":"SUM(V37:V38)","v":0}]
[]
[null,null,null,"Farmaci",null,null,null,0,null,0,null,0,null,0,null,0,null,0,null,0,null,{"$f":"SUM(H37,J37,L37,N37,P37,R37,T37)","v":0}]
[]
[]
[]
[]
[null,null,"Famiglia",null,null,null,null,null,null,null,null,null,null,null,null,null,null,null,null,null,null,{"$f":"SUM(V44:V47)","v":0}]
[]
[null,null,null,"Prodotti per bambini e giocattoli",null,null,null,0,null,0,null,0,null,0,null,0,null,0,null,0,null,{"$f":"SUM(H44,J44,L44,N44,P44,R44,T44)","v":0}]
[]
[null,null,null,"Baby-sitting",null,null,null,0,null,0,null,0,null,0,null,0,null,0,null,0,null,{"$f":"SUM(H46,J46,L46,N46,P46,R46,T46)","v":0}]
[]
[]
[]
[]
[null,null,"Istruzione",null,null,null,null,null,null,null,null,null,null,null,null,null,null,null,null,null,null,{"$f":"SUM(V53:V53)","v":0}]
[]
[null,null,null,"Cancelleria",null,null,null,0,null,0,null,0,null,0,null,0,null,0,null,0,null,{"$f":"SUM(H53,J53,L53,N53,P53,R53,T53)","v":0}]
[]
[]
[]
[]
[null,null,"Trasporti",null,null,null,null,null,null,null,null,null,null,null,null,null,null,null,null,null,null,{"$f":"SUM(V60,V62,V64,V66)","v":0}]
[]
[null,null,null,"Biglietti e abbonamenti",null,null,null,0,null,0,null,0,null,0,null,0,null,0,null,0,null,{"$f":"SUM(H60,J60,L60,N60,P60,R60,T60)","v":0}]
[]
[null,null,null,"Carburante",null,null,null,0,null,0,null,0,null,0,null,0,null,0,null,0,null,{"$f":"SUM(H62,J62,L62,N62,P62,R62,T62)","v":0}]
[]
[null,null,null,"Parcheggio",null,null,null,0,null,0,null,0,null,0,null,0,null,0,null,0,null,{"$f":"SUM(H64,J64,L64,N64,P64,R64,T64)","v":0}]
[]
[null,null,null,"Pedaggi autostradali",null,null,null,0,null,0,null,0,null,0,null,0,null,0,null,0,null,{"$f":"SUM(H66,J66,L66,N66,P66,R66,T66)","v":0}]
[]
[]
[]
[]
[null,null,"Tempo libero",null,null,null,null,null,null,null,null,null,null,null,null,null,null,null,null,null,null,{"$f":"SUM(V73,V75)","v":0}]
[]
[null,null,null,"Libri, giornali e riviste",null,null,null,0,null,0,null,0,null,0,null,0,null,0,null,0,null,{"$f":"SUM(H73,J73,L73,N73,P73,R73,T73)","v":0}]
[]
[null,null,null,"Ricreazione, spettacoli e cultura",null,null,null,0,null,0,null,0,null,0,null,0,null,0,null,0,null,{"$f":"SUM(H75,J75,L75,N75,P75,R75,T75)","v":0}]
[]
[]
[]
[]
[null,null,"Animali domestici",null,null,null,null,null,null,null,null,null,null,null,null,null,null,null,null,null,null,{"$f":"SUM(V82:V83)","v":0}]
[]
[null,null,null,"Alimenti ed accessori",null,null,null,0,null,0,null,0,null,0,null,0,null,0,null,0,null,{"$f":"SUM(H82,J82,L82,N82,P82,R82,T82)","v":0}]
[]
[]
[]
[]
[null,null,"Altre spese",null,null,null,null,null,null,null,null,null,null,null,null,null,null,null,null,null,null,0]
[]
[]
[]
[]
[]
[]
[null,null,null,null,"Totale",null,null,{"$f":"SUM($H$15:$H$92)","v":0},null,{"$f":"SUM($J$15:$J$92)","v":0},null,{"$f":"SUM($L$15:$L$92)","v":0},null,{"$f":"SUM($N$15:$N$92)","v":0},null,{"$f":"SUM($P$15:$P$92)","v":0},null,{"$f":"SUM($R$15:$R$92)","v":0},null,{"$f":"SUM($T$15:$T$92)","v":0},null,{"$f":"H94+J94+L94+N94+P94+R94+T94","v":0}]
[]
[null,null,null,null,null,null,null,null,null,null,null,null,null,null,null,null,null,"Spesa media quotidiana",null,null,null,{"$f":"(1/7)*V94","v":0}]